fUSD/lending_fUSD_20260608
["ID","MTS","AMOUNT","RATE_DAILY","PERIOD"]
[424417237,1780858269000,-158.0,0.00031,120]
[424417238,1780858269000,-6001.42,0.00031,14]
[424417240,1780858269000,-500.0,0.00031,30]
[424417241,1780858269000,-195.0,0.00031,120]
[424417195,1780858269000,-1211.0,0.00030804,7]
[424417234,1780858269000,-351.16783329,0.00031,5]
[424417218,1780858269000,-500.0,0.00030845,10]
[424417227,1780858269000,-215.83393831,0.000309,30]
[424417216,1780858269000,-307.41,0.00025,2]
[424417190,1780858269000,-200.0,0.00030743,2]
[424417193,1780858269000,-250.0,0.000308,30]
[424417219,1780858269000,-350.0,0.00030867,17]
[424417194,1780858269000,-989.41,0.00030804,7]
[424417197,1780858269000,-250.0,0.00030827,7]
[424417201,1780858269000,-765.07002696,0.00030828,2]
[424417211,1780858269000,-787.64267326,0.00030831,2]
[424417203,1780858269000,-979.89714991,0.00030828,2]
[424417208,1780858269000,-935.08190019,0.00030831,2]
[424417200,1780858269000,-250.0,0.00030827,7]
[424417205,1780858269000,-1000.0,0.00030829,15]
[424417196,1780858269000,-1041.62,0.00030804,7]
[424417206,1780858269000,-1000.0,0.00030829,15]
[424417210,1780858269000,-787.49560188,0.00030831,2]
[424417217,1780858269000,-258.00103709,0.0003084,30]
[424417215,1780858269000,-225.5795948,0.000149,2]
[424417213,1780858269000,-903.09076258,0.00030831,2]
[424417212,1780858269000,-848.87904558,0.00030831,2]
[424417214,1780858269000,-32.99896291,0.0003084,30]
[424417207,1780858269000,-811.17508045,0.00030831,2]
[424417204,1780858269000,-1000.0,0.00030829,15]
[424417202,1780858269000,-831.57612307,0.00030828,2]
[424417209,1780858269000,-805.37841944,0.00030831,2]
[424417261,1780858270000,-288.56,0.00031074,2]
[424417255,1780858270000,-600.0,0.00031028,60]
[424417259,1780858270000,-179.97120458,0.00031057,2]
[424417260,1780858270000,-152.0,0.00031062,30]
[424417252,1780858270000,-151.0,0.00031007,60]
[424417254,1780858270000,-150.0,0.00031011,2]
[424417250,1780858270000,-244.57625038,0.00031,3]
[424417256,1780858270000,-200.0,0.0003105,2]
[424417247,1780858270000,-1204.17469583,0.00028695,7]
[424417249,1780858270000,-1452.86,0.00028859,2]
[424417253,1780858270000,-500.0,0.0003101,10]
[424417248,1780858270000,-248.68530417,0.00028695,7]
[424417246,1780858270000,-1452.86,0.0002863,30]
[424417244,1780858270000,-1452.86,0.0002863,7]
[424417245,1780858270000,-1452.86,0.0002863,2]
[424417243,1780858270000,-1294.34530417,0.000149,2]
[424417262,1780858270000,-643.69,0.00031075,2]
[424417251,1780858270000,-250.0,0.00031,30]
[424417263,1780858270000,-184.88,0.00031075,2]
[424417257,1780858270000,-200.0,0.0003105,2]
[424417264,1780858270000,-198.77,0.000311,7]
[424417258,1780858270000,-200.0,0.0003105,2]
[424417281,1780858270000,-150.0,0.000312,4]
[424417282,1780858270000,-150.0,0.000312,4]
[424417279,1780858270000,-59.34214906,0.00031139,7]
[424417280,1780858270000,-150.0,0.000312,4]
[424417275,1780858270000,-1420.18317731,0.00018538,2]
[424417278,1780858270000,-3642.0,0.00021538,2]
[424417276,1780858270000,-2221.81682269,0.00018538,2]
[424417274,1780858270000,-520.0,0.00018495,5]
[424417277,1780858270000,-150.0,0.0002058,2]
[424417273,1780858270000,-1294.34530415,0.000166,2]
[424417272,1780858270000,-225.5795948,0.00016561,2]
[424417271,1780858270000,-1046.54375353,0.00015538,2]
[424417269,1780858270000,-2646.36124647,0.00015538,2]
[424417268,1780858270000,-3975.65785094,0.00031139,7]
[424417266,1780858270000,-410.59,0.00031123,120]
[424417267,1780858270000,-973.9,0.0003113,120]
[424417270,1780858270000,-151.0,0.0001531,2]
[424417265,1780858270000,-517.07,0.000311,7]
[424417325,1780858271000,-201.04481126,0.000315,2]
[424417316,1780858271000,-410.59,0.0003137,120]
[424417322,1780858271000,-152.0,0.00031418,31]
[424417327,1780858271000,-200.0,0.000315,120]
[424417324,1780858271000,-318.14821759,0.0003145,2]
[424417318,1780858271000,-6001.42,0.000314,14]
[424417319,1780858271000,-179.97120458,0.00031405,2]
[424417320,1780858271000,-500.0,0.00031407,10]
[424417317,1780858271000,-442.75372117,0.000314,30]
[424417315,1780858271000,-320.99,0.0003137,120]
[424417323,1780858271000,-314.05761245,0.00031441,2]
[424417326,1780858271000,-150.0,0.000315,2]
[424417321,1780858271000,-707.0,0.00031409,6]
[424417330,1780858271000,-1208.0,0.000315,30]
[424417340,1780858271000,-150.0,0.0003161,2]
[424417339,1780858271000,-150.0,0.0003161,2]
[424417328,1780858271000,-198.77,0.000315,7]
[424417331,1780858271000,-500.0,0.00031507,2]
[424417337,1780858271000,-150.0,0.0003161,2]
[424417332,1780858271000,-150.0,0.00031531,30]
[424417336,1780858271000,-1274.13,0.00031568,7]
[424417309,1780858271000,-483.0,0.00031281,30]
[424417335,1780858271000,-1109.93,0.00031568,7]
[424417334,1780858271000,-1076.16,0.00031568,7]
[424417338,1780858271000,-150.0,0.0003161,2]
[424417333,1780858271000,-290.0,0.00031531,30]
[424417341,1780858271000,-150.0,0.0003161,2]
[424417329,1780858271000,-517.07,0.000315,7]
[424417304,1780858271000,-983.0,0.00031262,30]
[424417314,1780858271000,-200.0,0.00031361,2]
[424417301,1780858271000,-683.0,0.00031262,30]
[424417343,1780858271000,-150.0,0.0003161,2]
[424417283,1780858271000,-150.0,0.000312,4]
[424417285,1780858271000,-155.385,0.000312,4]
[424417287,1780858271000,-258.975,0.000312,4]
[424417286,1780858271000,-155.385,0.000312,4]
[424417292,1780858271000,-573.09,0.00031213,2]
[424417288,1780858271000,-155.385,0.000312,4]
[424417291,1780858271000,-592.34,0.00031211,7]
[424417296,1780858271000,-929.0,0.00031262,30]
[424417293,1780858271000,-150.0,0.00031219,10]
[424417294,1780858271000,-300.0,0.00031219,10]
[424417297,1780858271000,-834.0,0.00031262,30]
[424417290,1780858271000,-1000.0,0.000312,7]
[424417299,1780858271000,-711.0,0.00031262,30]
[424417289,1780858271000,-207.18,0.000312,4]
[424417295,1780858271000,-571.0,0.00031262,30]
[424417300,1780858271000,-646.0,0.00031262,30]
[424417298,1780858271000,-2308.0,0.00031262,30]
[424417302,1780858271000,-1257.0,0.00031262,30]
[424417313,1780858271000,-200.0,0.00031361,2]
[424417312,1780858271000,-200.0,0.00031361,2]
[424417305,1780858271000,-310.0,0.00031279,5]
[424417310,1780858271000,-151.0,0.00031287,4]
[424417306,1780858271000,-2914.0,0.00031281,30]
[424417311,1780858271000,-615.03,0.00031355,30]
[424417308,1780858271000,-1524.0,0.00031281,30]
[424417307,1780858271000,-956.0,0.00031281,30]
[424417303,1780858271000,-962.0,0.00031262,30]
[424417345,1780858271000,-410.59,0.00031616,120]
[424417284,1780858271000,-207.18,0.000312,4]
[424417344,1780858271000,-150.0,0.0003161,2]
[424417377,1780858271000,-573.09,0.00031893,2]
[424417374,1780858271000,-575.32,0.00031893,2]
[424417391,1780858271000,-150.0,0.00032,120]
[424417384,1780858271000,-707.0,0.00031943,7]
[424417392,1780858271000,-1000.0,0.00032,120]
[424417381,1780858271000,-200.0,0.00031931,2]
[424417385,1780858271000,-615.03,0.00031963,30]
[424417380,1780858271000,-517.07,0.000319,7]
[424417383,1780858271000,-186.0,0.00031931,2]
[424417382,1780858271000,-200.0,0.00031931,2]
[424417388,1780858271000,-178.46581449,0.00032,120]
[424417389,1780858271000,-162.08,0.00032,120]
[424417387,1780858271000,-467.0,0.00032,5]
[424417376,1780858271000,-575.32,0.00031893,2]
[424417386,1780858271000,-500.0,0.00031969,10]
[424417393,1780858271000,-30129.28216256,0.00032,120]
[424417400,1780858271000,-151.0,0.00032007,60]
[424417404,1780858271000,-400.0,0.0003204,2]
[424417395,1780858271000,-1000.0,0.00032,30]
[424417394,1780858271000,-158.0,0.00032,120]
[424417396,1780858271000,-600.0,0.00032,30]
[424417397,1780858271000,-700.0,0.00032,2]
[424417398,1780858271000,-662.21,0.00032,120]
[424417401,1780858271000,-481.98,0.00032035,2]
[424417402,1780858271000,-400.0,0.0003204,2]
[424417405,1780858271000,-407.26698992,0.0003204,2]
[424417399,1780858271000,-2000.0,0.00032,7]
[424417403,1780858271000,-400.0,0.0003204,2]
[424417390,1780858271000,-319.2496585,0.00032,120]
[424417372,1780858271000,-410.59,0.00031863,120]
[424417342,1780858271000,-150.0,0.0003161,2]
[424417373,1780858271000,-483.41,0.00031893,2]
[424417346,1780858271000,-500.0,0.00031638,10]
[424417353,1780858271000,-966.45410332,0.00031696,2]
[424417347,1780858271000,-150.0,0.00031644,2]
[424417348,1780858271000,-918.08403235,0.00031694,2]
[424417350,1780858271000,-1175.8765799,0.00031694,2]
[424417352,1780858271000,-1122.09828023,0.00031696,2]
[424417351,1780858271000,-973.41009654,0.00031696,2]
[424417375,1780858271000,-185.06,0.00031893,2]
[424417355,1780858271000,-945.17120791,0.00031696,2]
[424417365,1780858271000,-993.68639809,0.00031814,2]
[424417366,1780858271000,-1024.06214513,0.00031814,2]
[424417354,1780858271000,-944.99472225,0.00031696,2]
[424417364,1780858271000,-1462.33,0.00031803,2]
[424417357,1780858271000,-1083.7089151,0.00031696,2]
[424417349,1780858271000,-997.89134769,0.00031694,2]
[424417360,1780858271000,-152.0,0.00031774,32]
[424417362,1780858271000,-2388.85,0.00031789,30]
[424417370,1780858271000,-1200.0,0.0003185,60]
[424417369,1780858271000,-314.05761245,0.00031842,2]
[424417371,1780858271000,-318.14821759,0.00031851,2]
[424417379,1780858271000,-198.77,0.000319,7]
[424417368,1780858271000,-910.23015405,0.00031814,2]
[424417378,1780858271000,-644.0,0.00031897,2]
[424417356,1780858271000,-1018.65485469,0.00031696,2]
[424417363,1780858271000,-6001.42,0.000318,14]
[424417361,1780858271000,-189.09,0.00031781,120]
[424417358,1780858271000,-315.34810608,0.00031704,2]
[424417359,1780858271000,-179.97120458,0.00031752,2]
[424417367,1780858271000,-1033.07275515,0.00031814,2]
[424417448,1780858272000,-318.14821759,0.00032418,2]
[424417451,1780858272000,-16500.0,0.00032463,7]
[424417449,1780858272000,-365.0,0.0003242,5]
[424417444,1780858272000,-150.0,0.00032345,2]
[424417447,1780858272000,-314.05761245,0.00032408,2]
[424417438,1780858272000,-151.0,0.000323,120]
[424417445,1780858272000,-150.0,0.00032345,2]
[424417443,1780858272000,-150.0,0.00032345,2]
[424417440,1780858272000,-150.0,0.00032345,2]
[424417441,1780858272000,-150.0,0.00032345,2]
[424417437,1780858272000,-1000.0,0.000323,30]
[424417446,1780858272000,-410.59,0.00032356,120]
[424417454,1780858272000,-200.0,0.000325,120]
[424417466,1780858272000,-200.0,0.00032539,2]
[424417450,1780858272000,-179.97120458,0.00032448,2]
[424417453,1780858272000,-152.0,0.00032486,34]
[424417452,1780858272000,-707.0,0.00032477,7]
[424417457,1780858272000,-500.0,0.0003253,10]
[424417467,1780858272000,-200.0,0.00032539,2]
[424417456,1780858272000,-1000.0,0.000325,30]
[424417460,1780858272000,-200.0,0.00032539,2]
[424417459,1780858272000,-200.0,0.00032539,2]
[424417458,1780858272000,-200.0,0.00032539,2]
[424417464,1780858272000,-200.0,0.00032539,2]
[424417465,1780858272000,-200.0,0.00032539,2]
[424417463,1780858272000,-200.0,0.00032539,2]
[424417462,1780858272000,-200.0,0.00032539,2]
[424417439,1780858272000,-150.0,0.00032345,2]
[424417455,1780858272000,-1000.0,0.000325,120]
[424417442,1780858272000,-150.0,0.00032345,2]
[424417423,1780858272000,-2308.0,0.00032262,30]
[424417436,1780858272000,-198.77,0.000323,7]
[424417461,1780858272000,-200.0,0.00032539,2]
[424417406,1780858272000,-179.97120458,0.000321,2]
[424417417,1780858272000,-315.34810608,0.00032206,2]
[424417416,1780858272000,-160.77,0.000322,7]
[424417409,1780858272000,-973.9,0.0003213,120]
[424417412,1780858272000,-6001.42,0.000322,14]
[424417408,1780858272000,-152.0,0.0003213,33]
[424417411,1780858272000,-318.14821759,0.00032159,2]
[424417407,1780858272000,-410.59,0.0003211,120]
[424417410,1780858272000,-314.05761245,0.00032149,2]
[424417414,1780858272000,-160.77,0.000322,7]
[424417413,1780858272000,-150.0,0.000322,8]
[424417415,1780858272000,-212.565,0.000322,7]
[424417435,1780858272000,-151.0,0.00032287,4]
[424417418,1780858272000,-1175.4,0.0003221,5]
[424417422,1780858272000,-834.0,0.00032262,30]
[424417419,1780858272000,-369.06159476,0.00032222,30]
[424417429,1780858272000,-983.0,0.00032262,30]
[424417430,1780858272000,-500.0,0.00032266,10]
[424417431,1780858272000,-2914.0,0.00032281,30]
[424417427,1780858272000,-1257.0,0.00032262,30]
[424417424,1780858272000,-711.0,0.00032262,30]
[424417425,1780858272000,-646.0,0.00032262,30]
[424417426,1780858272000,-683.0,0.00032262,30]
[424417428,1780858272000,-962.0,0.00032262,30]
[424417433,1780858272000,-1524.0,0.00032281,30]
[424417432,1780858272000,-956.0,0.00032281,30]
[424417434,1780858272000,-483.0,0.00032281,30]
[424417421,1780858272000,-929.0,0.00032262,30]
[424417468,1780858272000,-200.0,0.00032539,2]
[424417420,1780858272000,-571.0,0.00032262,30]
[424417471,1780858272000,-200.0,0.00032539,2]
[424417498,1780858272000,-200.0,0.00032539,2]
[424417501,1780858272000,-200.0,0.00032539,2]
[424417507,1780858272000,-200.0,0.00032539,2]
[424417516,1780858272000,-500.0,0.00032539,2]
[424417506,1780858272000,-200.0,0.00032539,2]
[424417508,1780858272000,-200.0,0.00032539,2]
[424417511,1780858272000,-200.0,0.00032539,2]
[424417517,1780858272000,-500.0,0.00032539,2]
[424417518,1780858272000,-500.0,0.00032539,2]
[424417510,1780858272000,-200.0,0.00032539,2]
[424417530,1780858272000,-318.14821759,0.00032646,2]
[424417509,1780858272000,-200.0,0.00032539,2]
[424417515,1780858272000,-200.0,0.00032539,2]
[424417497,1780858272000,-200.0,0.00032539,2]
[424417513,1780858272000,-200.0,0.00032539,2]
[424417512,1780858272000,-200.0,0.00032539,2]
[424417519,1780858272000,-162.0,0.00032539,2]
[424417523,1780858272000,-315.34810608,0.00032592,2]
[424417522,1780858272000,-615.03,0.00032572,30]
[424417521,1780858272000,-150.0,0.00032562,2]
[424417526,1780858272000,-6001.42,0.000326,14]
[424417525,1780858272000,-527.11636184,0.00032598,120]
[424417520,1780858272000,-545.0,0.00032539,2]
[424417528,1780858272000,-410.59,0.00032603,120]
[424417527,1780858272000,-189.09,0.00032603,120]
[424417529,1780858272000,-314.05761245,0.00032636,2]
[424417531,1780858272000,-600.0,0.00032672,60]
[424417469,1780858272000,-200.0,0.00032539,2]
[424417514,1780858272000,-200.0,0.00032539,2]
[424417503,1780858272000,-200.0,0.00032539,2]
[424417524,1780858272000,-500.0,0.00032598,120]
[424417495,1780858272000,-200.0,0.00032539,2]
[424417505,1780858272000,-200.0,0.00032539,2]
[424417479,1780858272000,-200.0,0.00032539,2]
[424417480,1780858272000,-200.0,0.00032539,2]
[424417477,1780858272000,-200.0,0.00032539,2]
[424417476,1780858272000,-500.0,0.00032539,2]
[424417475,1780858272000,-500.0,0.00032539,2]
[424417473,1780858272000,-200.0,0.00032539,2]
[424417470,1780858272000,-200.0,0.00032539,2]
[424417472,1780858272000,-200.0,0.00032539,2]
[424417478,1780858272000,-200.0,0.00032539,2]
[424417481,1780858272000,-200.0,0.00032539,2]
[424417482,1780858272000,-200.0,0.00032539,2]
[424417486,1780858272000,-200.0,0.00032539,2]
[424417483,1780858272000,-500.0,0.00032539,2]
[424417474,1780858272000,-200.0,0.00032539,2]
[424417493,1780858272000,-200.0,0.00032539,2]
[424417485,1780858272000,-170.0,0.00032539,2]
[424417502,1780858272000,-200.0,0.00032539,2]
[424417500,1780858272000,-200.0,0.00032539,2]
[424417504,1780858272000,-200.0,0.00032539,2]
[424417496,1780858272000,-200.0,0.00032539,2]
[424417494,1780858272000,-200.0,0.00032539,2]
[424417499,1780858272000,-200.0,0.00032539,2]
[424417490,1780858272000,-200.0,0.00032539,2]
[424417489,1780858272000,-200.0,0.00032539,2]
[424417487,1780858272000,-200.0,0.00032539,2]
[424417488,1780858272000,-200.0,0.00032539,2]
[424417484,1780858272000,-200.0,0.00032539,2]
[424417492,1780858272000,-200.0,0.00032539,2]
[424417491,1780858272000,-200.0,0.00032539,2]
[424417556,1780858273000,-450.43,0.00032809,120]
[424417558,1780858273000,-450.43,0.00032809,120]
[424417564,1780858273000,-410.59,0.00032849,120]
[424417566,1780858273000,-573.09,0.00032857,2]
[424417565,1780858273000,-318.14821759,0.00032853,2]
[424417567,1780858273000,-291.0,0.0003286,30]
[424417568,1780858273000,-406.62165217,0.0003287,120]
[424417562,1780858273000,-152.0,0.00032842,35]
[424417560,1780858273000,-450.42667137,0.00032809,120]
[424417574,1780858273000,-1000.0,0.00032876,30]
[424417559,1780858273000,-450.43,0.00032809,120]
[424417563,1780858273000,-314.05761245,0.00032843,2]
[424417569,1780858273000,-1000.0,0.00032876,30]
[424417571,1780858273000,-1000.0,0.00032876,30]
[424417572,1780858273000,-1000.0,0.00032876,30]
[424417582,1780858273000,-1000.0,0.00032876,30]
[424417573,1780858273000,-1000.0,0.00032876,30]
[424417577,1780858273000,-1000.0,0.00032876,30]
[424417553,1780858273000,-450.43,0.00032809,120]
[424417561,1780858273000,-320.93495683,0.00032838,120]
[424417549,1780858273000,-179.97120458,0.00032795,2]
[424417538,1780858273000,-206.79450401,0.00032708,14]
[424417557,1780858273000,-450.43,0.00032809,120]
[424417575,1780858273000,-1000.0,0.00032876,30]
[424417543,1780858273000,-641.22,0.00032719,2]
[424417533,1780858273000,-1006.11,0.00032679,7]
[424417532,1780858273000,-1169.72,0.00032679,7]
[424417534,1780858273000,-198.77,0.000327,7]
[424417535,1780858273000,-216.81334447,0.00032708,14]
[424417539,1780858273000,-209.0290413,0.00032708,14]
[424417536,1780858273000,-213.48459273,0.00032708,14]
[424417537,1780858273000,-214.57093055,0.00032708,14]
[424417541,1780858273000,-151.0,0.00032717,2]
[424417542,1780858273000,-573.09,0.00032718,2]
[424417540,1780858273000,-213.08619386,0.00032708,14]
[424417544,1780858273000,-1389.35,0.00032733,15]
[424417546,1780858273000,-1041.82,0.00032759,7]
[424417547,1780858273000,-1074.5,0.00032759,7]
[424417545,1780858273000,-504.06,0.00032738,15]
[424417555,1780858273000,-450.43,0.00032809,120]
[424417552,1780858273000,-450.43,0.00032809,120]
[424417550,1780858273000,-1000.0,0.000328,30]
[424417548,1780858273000,-150.327651,0.00032765,2]
[424417554,1780858273000,-450.43,0.00032809,120]
[424417551,1780858273000,-450.43,0.00032809,120]
[424417570,1780858273000,-1000.0,0.00032876,30]
[424417576,1780858273000,-1000.0,0.00032876,30]
[424417580,1780858273000,-1000.0,0.00032876,30]
[424417608,1780858273000,-1000.0,0.00032876,30]
[424417606,1780858273000,-1000.0,0.00032876,30]
[424417612,1780858273000,-1000.0,0.00032876,30]
[424417607,1780858273000,-1000.0,0.00032876,30]
[424417609,1780858273000,-1000.0,0.00032876,30]
[424417611,1780858273000,-1000.0,0.00032876,30]
[424417610,1780858273000,-1000.0,0.00032876,30]
[424417614,1780858273000,-1000.0,0.00032876,30]
[424417613,1780858273000,-1000.0,0.00032876,30]
[424417599,1780858273000,-1000.0,0.00032876,30]
[424417615,1780858273000,-1000.0,0.00032876,30]
[424417618,1780858273000,-1000.0,0.00032876,30]
[424417619,1780858273000,-1000.0,0.00032876,30]
[424417620,1780858273000,-1000.0,0.00032876,30]
[424417622,1780858273000,-1000.0,0.00032876,30]
[424417625,1780858273000,-607.94842668,0.00032876,30]
[424417621,1780858273000,-1000.0,0.00032876,30]
[424417624,1780858273000,-1000.0,0.00032876,30]
[424417623,1780858273000,-1000.0,0.00032876,30]
[424417581,1780858273000,-1000.0,0.00032876,30]
[424417617,1780858273000,-347.34161257,0.00032876,30]
[424417602,1780858273000,-1000.0,0.00032876,30]
[424417616,1780858273000,-652.65838743,0.00032876,30]
[424417604,1780858273000,-1000.0,0.00032876,30]
[424417578,1780858273000,-1000.0,0.00032876,30]
[424417603,1780858273000,-1000.0,0.00032876,30]
[424417579,1780858273000,-1000.0,0.00032876,30]
[424417584,1780858273000,-1000.0,0.00032876,30]
[424417594,1780858273000,-1000.0,0.00032876,30]
[424417595,1780858273000,-1000.0,0.00032876,30]
[424417586,1780858273000,-1000.0,0.00032876,30]
[424417589,1780858273000,-1000.0,0.00032876,30]
[424417588,1780858273000,-1000.0,0.00032876,30]
[424417587,1780858273000,-1000.0,0.00032876,30]
[424417583,1780858273000,-1000.0,0.00032876,30]
[424417591,1780858273000,-1000.0,0.00032876,30]
[424417592,1780858273000,-1000.0,0.00032876,30]
[424417590,1780858273000,-1000.0,0.00032876,30]
[424417593,1780858273000,-1000.0,0.00032876,30]
[424417598,1780858273000,-1000.0,0.00032876,30]
[424417597,1780858273000,-1000.0,0.00032876,30]
[424417600,1780858273000,-1000.0,0.00032876,30]
[424417596,1780858273000,-1000.0,0.00032876,30]
[424417585,1780858273000,-1000.0,0.00032876,30]
[424417601,1780858273000,-1000.0,0.00032876,30]
[424417605,1780858273000,-1000.0,0.00032876,30]
[424417659,1780858274000,-916.631578,0.00032877,7]
[424417669,1780858274000,-916.631578,0.00032877,7]
[424417670,1780858274000,-916.631578,0.00032877,7]
[424417663,1780858274000,-916.631578,0.00032877,7]
[424417664,1780858274000,-916.631578,0.00032877,7]
[424417656,1780858274000,-916.631578,0.00032877,7]
[424417661,1780858274000,-916.631578,0.00032877,7]
[424417660,1780858274000,-916.631578,0.00032877,7]
[424417657,1780858274000,-916.631578,0.00032877,7]
[424417668,1780858274000,-916.631578,0.00032877,7]
[424417662,1780858274000,-916.631578,0.00032877,7]
[424417666,1780858274000,-916.631578,0.00032877,7]
[424417679,1780858274000,-164.64,0.00032877,30]
[424417665,1780858274000,-916.631578,0.00032877,7]
[424417673,1780858274000,-500.0,0.00032877,30]
[424417672,1780858274000,-540.36,0.00032877,30]
[424417671,1780858274000,-916.631584,0.00032877,7]
[424417675,1780858274000,-500.0,0.00032877,30]
[424417683,1780858274000,-250.0,0.00032877,120]
[424417674,1780858274000,-500.0,0.00032877,30]
[424417680,1780858274000,-1000.0,0.00032877,120]
[424417677,1780858274000,-500.0,0.00032877,30]
[424417678,1780858274000,-508.0,0.00032877,30]
[424417681,1780858274000,-250.0,0.00032877,120]
[424417655,1780858274000,-916.631578,0.00032877,7]
[424417667,1780858274000,-916.631578,0.00032877,7]
[424417658,1780858274000,-916.631578,0.00032877,7]
[424417633,1780858274000,-244.008753,0.00032877,7]
[424417653,1780858274000,-916.631578,0.00032877,7]
[424417626,1780858274000,-1000.0,0.00032876,120]
[424417627,1780858274000,-240.0,0.00032877,2]
[424417628,1780858274000,-351.15,0.00032877,2]
[424417631,1780858274000,-244.008753,0.00032877,7]
[424417634,1780858274000,-244.008753,0.00032877,7]
[424417629,1780858274000,-1000.0,0.00032877,10]
[424417638,1780858274000,-244.008753,0.00032877,7]
[424417630,1780858274000,-672.0,0.00032877,10]
[424417632,1780858274000,-244.008753,0.00032877,7]
[424417635,1780858274000,-244.008753,0.00032877,7]
[424417637,1780858274000,-244.008753,0.00032877,7]
[424417636,1780858274000,-244.008753,0.00032877,7]
[424417654,1780858274000,-916.631578,0.00032877,7]
[424417639,1780858274000,-244.008753,0.00032877,7]
[424417646,1780858274000,-244.008753,0.00032877,7]
[424417650,1780858274000,-244.008753,0.00032877,7]
[424417640,1780858274000,-244.008753,0.00032877,7]
[424417645,1780858274000,-244.008753,0.00032877,7]
[424417644,1780858274000,-244.008753,0.00032877,7]
[424417641,1780858274000,-244.008753,0.00032877,7]
[424417647,1780858274000,-244.008753,0.00032877,7]
[424417643,1780858274000,-244.008753,0.00032877,7]
[424417649,1780858274000,-244.008753,0.00032877,7]
[424417648,1780858274000,-244.008753,0.00032877,7]
[424417652,1780858274000,-916.631578,0.00032877,7]
[424417651,1780858274000,-217.75,0.00032877,2]
[424417642,1780858274000,-244.008753,0.00032877,7]
[424417682,1780858274000,-250.0,0.00032877,120]
[424417676,1780858274000,-500.0,0.00032877,30]
[424417686,1780858274000,-150.0,0.00032877,3]
[424417716,1780858274000,-500.0,0.00032877,2]
[424417718,1780858274000,-198.66,0.000329,120]
[424417717,1780858274000,-500.0,0.00032894,10]
[424417719,1780858274000,-331.19547279,0.000329,120]
[424417722,1780858274000,-315.34810608,0.00032917,2]
[424417721,1780858274000,-461.53,0.000329,120]
[424417720,1780858274000,-155.38653879,0.000329,120]
[424417723,1780858274000,-150.0,0.00032955,2]
[424417726,1780858274000,-500.0,0.00032955,2]
[424417727,1780858274000,-500.0,0.00032955,2]
[424417725,1780858274000,-289.56177625,0.00032955,2]
[424417728,1780858274000,-500.0,0.00032955,2]
[424417715,1780858274000,-344.61842662,0.00032877,10]
[424417729,1780858274000,-504.97405917,0.00032955,2]
[424417731,1780858274000,-1071.09803774,0.00032992,2]
[424417733,1780858274000,-1135.64511263,0.00032995,2]
[424417741,1780858274000,-542.20351676,0.00033,3]
[424417732,1780858274000,-1164.2065723,0.00032992,2]
[424417736,1780858274000,-1102.49384263,0.00032995,2]
[424417737,1780858274000,-1102.69974256,0.00032995,2]
[424417735,1780858274000,-1127.52978721,0.00032995,2]
[424417738,1780858274000,-1188.43066381,0.00032995,2]
[424417739,1780858274000,-1264.32706761,0.00032995,2]
[424417734,1780858274000,-1309.11466027,0.00032995,2]
[424417740,1780858274000,-300.0,0.00032999,10]
[424417684,1780858274000,-250.0,0.00032877,120]